[Event "Titled Tuesday Blitz March 22 Late 2022"]
[White "Dilanyan, Grigor"]
[Black "Kostiukov, Alexandr"]
[WhiteFideId "13303570"]
[BlackFideId "14108100"]
[WhiteElo "2279"]
[BlackElo "2202"]
[Result "1-0"]
[Round "06"]
[TimeControl "180+1"]
[Date "2022.03.22"]
[WhiteClock "0:01:15"]
[BlackClock "0:00:09"]

1. e4 {[%clk 0:03:00]}  c5 {[%clk 0:02:59]} 2. Nf3 {[%clk 0:03:01]}  g6 {[%clk 0:02:58]} 3. d4 {[%clk 0:02:59]}  cxd4 {[%clk 0:02:59]} 4. Nxd4 {[%clk 0:02:59]}  Bg7 {[%clk 0:02:59]} 5. Nc3 {[%clk 0:02:57]}  Nc6 {[%clk 0:02:59]} 6. Be3 {[%clk 0:02:58]}  Nf6 {[%clk 0:02:59]} 7. Bc4 {[%clk 0:02:58]}  O-O {[%clk 0:02:58]} 8. Bb3 {[%clk 0:02:59]}  a5 {[%clk 0:02:57]} 9. a3 {[%clk 0:02:40]}  Ng4 {[%clk 0:02:29]} 10. Qxg4 {[%clk 0:02:25]}  Nxd4 {[%clk 0:02:28]} 11. O-O {[%clk 0:02:14]}  Nxb3 {[%clk 0:02:27]} 12. cxb3 {[%clk 0:02:15]}  d5 {[%clk 0:02:24]} 13. Qf3 {[%clk 0:02:12]}  d4 {[%clk 0:02:21]} 14. Rfd1 {[%clk 0:02:09]}  Qb6 {[%clk 0:02:07]} 15. Nd5 {[%clk 0:02:06]}  Qxb3 {[%clk 0:02:02]} 16. Nxe7+ {[%clk 0:01:58]}  Kh8 {[%clk 0:02:02]} 17. Bxd4 {[%clk 0:01:55]}  Qxf3 {[%clk 0:02:01]} 18. gxf3 {[%clk 0:01:51]}  Be6 {[%clk 0:01:49]} 19. Rac1 {[%clk 0:01:49]}  Rad8 {[%clk 0:01:31]} 20. Bxg7+ {[%clk 0:01:45]}  Kxg7 {[%clk 0:01:32]} 21. Nd5 {[%clk 0:01:35]}  Bxd5 {[%clk 0:01:23]} 22. exd5 {[%clk 0:01:36]}  Rd7 {[%clk 0:01:12]} 23. Rc5 {[%clk 0:01:35]}  b6 {[%clk 0:01:10]} 24. Rc6 {[%clk 0:01:35]}  Rfd8 {[%clk 0:01:09]} 25. d6 {[%clk 0:01:32]}  b5 {[%clk 0:01:04]} 26. Rd5 {[%clk 0:01:31]}  b4 {[%clk 0:01:01]} 27. a4 {[%clk 0:01:30]}  Kf6 {[%clk 0:00:56]} 28. Rb6 {[%clk 0:01:24]}  Ke6 {[%clk 0:00:54]} 29. Rxa5 {[%clk 0:01:24]}  Rxd6 {[%clk 0:00:49]} 30. Rxb4 {[%clk 0:01:24]}  Rd1+ {[%clk 0:00:43]} 31. Kg2 {[%clk 0:01:24]}  Ra1 {[%clk 0:00:36]} 32. Ra6+ {[%clk 0:01:22]}  Ke7 {[%clk 0:00:24]} 33. Rb7+ {[%clk 0:01:20]}  Kf8 {[%clk 0:00:17]} 34. Rf6 {[%clk 0:01:19]}  Rdd1 {[%clk 0:00:14]} 35. Rfxf7+ {[%clk 0:01:20]}  Kg8 {[%clk 0:00:14]} 36. Rg7+ {[%clk 0:01:17]}  Kh8 {[%clk 0:00:14]} 37. Rxh7+ {[%clk 0:01:18]}  Kg8 {[%clk 0:00:14]} 38. b3 {[%clk 0:01:15]}  Rac1 {[%clk 0:00:13]} 39. Rhc7 {[%clk 0:01:14]}  Rg1+ {[%clk 0:00:11]} 40. Kh3 {[%clk 0:01:14]}  Rxc7 {[%clk 0:00:10]} 41. Rxc7 {[%clk 0:01:15]}  Rb1 {[%clk 0:00:09]} 42. Rb7 {[%clk 0:01:15]} 1-0


[Site "https://www.chess.com"]

[Event "Titled Tuesday Blitz March 22 Late 2022"]
[White "Dolzhykova, Kateryna"]
[Black "Sanchez, Robert"]
[WhiteFideId "14113414"]
[BlackFideId "2034360"]
[WhiteElo "2184"]
[BlackElo "2248"]
[Result "1-0"]
[Round "06"]
[TimeControl "180+1"]
[Date "2022.03.22"]
[WhiteClock "0:00:16"]
[BlackClock "0:01:10"]

1. e4 {[%clk 0:03:00]}  e6 {[%clk 0:03:00]} 2. d3 {[%clk 0:02:59]}  c5 {[%clk 0:03:00]} 3. g3 {[%clk 0:02:58]}  Nc6 {[%clk 0:03:01]} 4. Bg2 {[%clk 0:02:58]}  d6 {[%clk 0:03:01]} 5. Nf3 {[%clk 0:02:58]}  g6 {[%clk 0:03:02]} 6. O-O {[%clk 0:02:58]}  Bg7 {[%clk 0:03:03]} 7. Nc3 {[%clk 0:02:59]}  Nge7 {[%clk 0:03:03]} 8. Be3 {[%clk 0:02:57]}  e5 {[%clk 0:03:02]} 9. Qd2 {[%clk 0:02:54]}  h6 {[%clk 0:03:02]} 10. Nh4 {[%clk 0:02:53]}  Nd4 {[%clk 0:02:59]} 11. f4 {[%clk 0:02:48]}  exf4 {[%clk 0:02:51]} 12. gxf4 {[%clk 0:02:49]}  Bd7 {[%clk 0:02:25]} 13. f5 {[%clk 0:02:24]}  Nexf5 {[%clk 0:02:18]} 14. Nxf5 {[%clk 0:02:23]}  gxf5 {[%clk 0:02:18]} 15. exf5 {[%clk 0:02:23]}  Bxf5 {[%clk 0:02:17]} 16. Rae1 {[%clk 0:02:22]}  O-O {[%clk 0:02:06]} 17. Bxh6 {[%clk 0:02:21]}  Bg6 {[%clk 0:02:03]} 18. Bxg7 {[%clk 0:02:18]}  Kxg7 {[%clk 0:02:04]} 19. Nd5 {[%clk 0:02:16]}  Qh4 {[%clk 0:01:57]} 20. c3 {[%clk 0:02:13]}  Ne6 {[%clk 0:01:51]} 21. Nf4 {[%clk 0:02:05]}  Rh8 {[%clk 0:01:48]} 22. Nxe6+ {[%clk 0:01:01]}  fxe6 {[%clk 0:01:46]} 23. Qf4 {[%clk 0:00:53]}  Qxf4 {[%clk 0:01:45]} 24. Rxf4 {[%clk 0:00:54]}  e5 {[%clk 0:01:43]} 25. Rf3 {[%clk 0:00:55]}  Raf8 {[%clk 0:01:36]} 26. Rg3 {[%clk 0:00:55]}  Rf6 {[%clk 0:01:14]} 27. Bxb7 {[%clk 0:00:52]}  Rb8 {[%clk 0:01:13]} 28. Be4 {[%clk 0:00:43]}  Rxb2 {[%clk 0:01:13]} 29. Rf1 {[%clk 0:00:19]}  Rxf1+ {[%clk 0:01:12]} 30. Kxf1 {[%clk 0:00:20]}  Rxa2 {[%clk 0:01:12]} 31. Rxg6+ {[%clk 0:00:20]}  Kf7 {[%clk 0:01:13]} 32. Rxd6 {[%clk 0:00:17]}  Rxh2 {[%clk 0:01:13]} 33. Rd5 {[%clk 0:00:17]}  Rc2 {[%clk 0:01:11]} 34. Rxc5 {[%clk 0:00:17]}  a5 {[%clk 0:01:10]} 35. Rxa5 {[%clk 0:00:16]}  Rxc3 {[%clk 0:01:10]} 36. Rxe5 {[%clk 0:00:16]} 1-0


[Site "https://www.chess.com"]

[Event "Titled Tuesday Blitz March 22 Late 2022"]
[White "Erdogdu, Mert"]
[Black "Hartikainen, Jarmo"]
[WhiteFideId "6301495"]
[BlackFideId "503134"]
[WhiteElo "2485"]
[BlackElo "2102"]
[Result "1-0"]
[Round "06"]
[TimeControl "180+1"]
[Date "2022.03.22"]
[WhiteClock "0:01:05"]
[BlackClock "0:00:02"]

1. e4 {[%clk 0:03:00]}  c5 {[%clk 0:02:59]} 2. Nf3 {[%clk 0:03:00]}  Nc6 {[%clk 0:02:59]} 3. d4 {[%clk 0:03:01]}  cxd4 {[%clk 0:02:59]} 4. Nxd4 {[%clk 0:03:02]}  Nf6 {[%clk 0:03:00]} 5. Nc3 {[%clk 0:03:02]}  d6 {[%clk 0:03:00]} 6. Bg5 {[%clk 0:03:00]}  e6 {[%clk 0:02:59]} 7. Qd2 {[%clk 0:03:00]}  a6 {[%clk 0:02:58]} 8. O-O-O {[%clk 0:03:00]}  Bd7 {[%clk 0:02:58]} 9. f3 {[%clk 0:03:00]}  Rc8 {[%clk 0:02:53]} 10. Kb1 {[%clk 0:02:59]}  b5 {[%clk 0:02:53]} 11. Be3 {[%clk 0:02:59]}  Qc7 {[%clk 0:02:50]} 12. g4 {[%clk 0:02:59]}  Na5 {[%clk 0:02:42]} 13. Bd3 {[%clk 0:02:49]}  Nc4 {[%clk 0:02:41]} 14. Bxc4 {[%clk 0:02:49]}  bxc4 {[%clk 0:02:42]} 15. g5 {[%clk 0:02:49]}  Nh5 {[%clk 0:02:41]} 16. Ka1 {[%clk 0:02:49]}  Rb8 {[%clk 0:02:38]} 17. Nde2 {[%clk 0:02:43]}  Qb7 {[%clk 0:02:32]} 18. Rb1 {[%clk 0:02:42]}  Be7 {[%clk 0:02:31]} 19. Ng3 {[%clk 0:02:41]}  Nxg3 {[%clk 0:02:24]} 20. hxg3 {[%clk 0:02:41]}  a5 {[%clk 0:02:23]} 21. Bd4 {[%clk 0:02:29]}  e5 {[%clk 0:02:08]} 22. Be3 {[%clk 0:02:29]}  Bc6 {[%clk 0:02:08]} 23. g4 {[%clk 0:02:08]}  a4 {[%clk 0:02:01]} 24. a3 {[%clk 0:02:07]}  Kd7 {[%clk 0:01:42]} 25. Rhd1 {[%clk 0:02:03]}  Kc7 {[%clk 0:01:38]} 26. Na2 {[%clk 0:01:55]}  Rhd8 {[%clk 0:01:22]} 27. Qa5+ {[%clk 0:01:54]}  Kc8 {[%clk 0:01:18]} 28. Nb4 {[%clk 0:01:48]}  Ra8 {[%clk 0:00:47]} 29. Qb6 {[%clk 0:01:45]}  Qxb6 {[%clk 0:00:36]} 30. Bxb6 {[%clk 0:01:46]}  Kb7 {[%clk 0:00:36]} 31. Bxd8 {[%clk 0:01:45]}  Rxd8 {[%clk 0:00:37]} 32. Nxc6 {[%clk 0:01:41]}  Kxc6 {[%clk 0:00:37]} 33. Rh1 {[%clk 0:01:41]}  Bxg5 {[%clk 0:00:35]} 34. Rxh7 {[%clk 0:01:38]}  Rg8 {[%clk 0:00:27]} 35. Rd1 {[%clk 0:01:35]}  Be3 {[%clk 0:00:17]} 36. c3 {[%clk 0:01:24]}  Bc5 {[%clk 0:00:16]} 37. Kb1 {[%clk 0:01:24]}  Be3 {[%clk 0:00:16]} 38. Kc2 {[%clk 0:01:24]}  Bc5 {[%clk 0:00:16]} 39. Rdh1 {[%clk 0:01:22]}  d5 {[%clk 0:00:14]} 40. exd5+ {[%clk 0:01:20]}  Kxd5 {[%clk 0:00:15]} 41. Rh8 {[%clk 0:01:21]}  Rxh8 {[%clk 0:00:14]} 42. Rxh8 {[%clk 0:01:21]}  e4 {[%clk 0:00:14]} 43. Rd8+ {[%clk 0:01:20]}  Ke5 {[%clk 0:00:10]} 44. fxe4 {[%clk 0:01:08]}  Kxe4 {[%clk 0:00:08]} 45. Ra8 {[%clk 0:01:08]}  g6 {[%clk 0:00:05]} 46. Rxa4 {[%clk 0:01:08]}  f5 {[%clk 0:00:05]} 47. gxf5 {[%clk 0:01:05]}  gxf5 {[%clk 0:00:02]} 48. Rxc4+ {[%clk 0:01:06]}  Kd5 {[%clk 0:00:02]} 49. Kd3 {[%clk 0:01:05]} 1-0


[Site "https://www.chess.com"]

[Event "Titled Tuesday Blitz March 22 Late 2022"]
[White "Estrada Nieto, Julian"]
[Black "Djokic, Mihailo"]
[WhiteFideId "5101018"]
[BlackFideId "976440"]
[WhiteElo "2246"]
[BlackElo "2093"]
[Result "0-1"]
[Round "06"]
[TimeControl "180+1"]
[Date "2022.03.22"]
[WhiteClock "0:00:01"]
[BlackClock "0:00:03"]

1. e4 {[%clk 0:03:00]}  e6 {[%clk 0:03:00]} 2. d4 {[%clk 0:03:00]}  d5 {[%clk 0:03:01]} 3. Nd2 {[%clk 0:02:59]}  Nc6 {[%clk 0:03:00]} 4. Ngf3 {[%clk 0:02:59]}  Nf6 {[%clk 0:02:59]} 5. e5 {[%clk 0:02:59]}  Nd7 {[%clk 0:02:58]} 6. Be2 {[%clk 0:03:00]}  f6 {[%clk 0:02:57]} 7. exf6 {[%clk 0:03:00]}  Qxf6 {[%clk 0:02:56]} 8. Nf1 {[%clk 0:03:01]}  Bd6 {[%clk 0:02:55]} 9. Ne3 {[%clk 0:03:01]}  O-O {[%clk 0:02:54]} 10. O-O {[%clk 0:03:00]}  Nb6 {[%clk 0:02:52]} 11. Ng4 {[%clk 0:02:58]}  Qf5 {[%clk 0:02:38]} 12. h3 {[%clk 0:02:57]}  Bd7 {[%clk 0:02:17]} 13. Bd3 {[%clk 0:02:55]}  Qh5 {[%clk 0:02:14]} 14. Nfe5 {[%clk 0:02:44]}  Be8 {[%clk 0:01:58]} 15. Nxc6 {[%clk 0:02:25]}  bxc6 {[%clk 0:01:57]} 16. Re1 {[%clk 0:02:25]}  Qf7 {[%clk 0:01:41]} 17. Qd2 {[%clk 0:01:44]}  c5 {[%clk 0:01:20]} 18. Qg5 {[%clk 0:01:30]}  Kh8 {[%clk 0:01:20]} 19. Qh4 {[%clk 0:01:28]}  Qh5 {[%clk 0:01:06]} 20. Qxh5 {[%clk 0:01:24]}  Bxh5 {[%clk 0:01:04]} 21. dxc5 {[%clk 0:01:11]}  Bxc5 {[%clk 0:01:03]} 22. Be3 {[%clk 0:01:11]}  Bxe3 {[%clk 0:00:51]} 23. Rxe3 {[%clk 0:01:11]}  Bxg4 {[%clk 0:00:51]} 24. hxg4 {[%clk 0:01:10]}  Na4 {[%clk 0:00:35]} 25. Bb5 {[%clk 0:00:42]}  Nc5 {[%clk 0:00:33]} 26. b4 {[%clk 0:00:40]}  Ne4 {[%clk 0:00:32]} 27. f3 {[%clk 0:00:39]}  Ng5 {[%clk 0:00:27]} 28. Bd3 {[%clk 0:00:29]}  a5 {[%clk 0:00:22]} 29. b5 {[%clk 0:00:26]}  a4 {[%clk 0:00:22]} 30. Rf1 {[%clk 0:00:19]}  Rae8 {[%clk 0:00:07]} 31. Re5 {[%clk 0:00:18]}  Nf7 {[%clk 0:00:07]} 32. Re2 {[%clk 0:00:17]}  e5 {[%clk 0:00:04]} 33. Rfe1 {[%clk 0:00:17]}  Re7 {[%clk 0:00:04]} 34. c4 {[%clk 0:00:15]}  dxc4 {[%clk 0:00:03]} 35. Bxc4 {[%clk 0:00:15]}  Nd6 {[%clk 0:00:04]} 36. Bd3 {[%clk 0:00:14]}  Rfe8 {[%clk 0:00:05]} 37. g3 {[%clk 0:00:13]}  g6 {[%clk 0:00:05]} 38. Kg2 {[%clk 0:00:12]}  Kg7 {[%clk 0:00:05]} 39. Rc1 {[%clk 0:00:12]}  h6 {[%clk 0:00:03]} 40. Rec2 {[%clk 0:00:12]}  Rc8 {[%clk 0:00:03]} 41. b6 {[%clk 0:00:12]}  Ne8 {[%clk 0:00:02]} 42. Ba6 {[%clk 0:00:08]}  Ra8 {[%clk 0:00:01]} 43. b7 {[%clk 0:00:09]}  Rb8 {[%clk 0:00:02]} 44. Rb1 {[%clk 0:00:07]}  Nd6 {[%clk 0:00:02]} 45. Rc6 {[%clk 0:00:05]}  e4 {[%clk 0:00:01]} 46. fxe4 {[%clk 0:00:02]}  Nxe4 {[%clk 0:00:02]} 47. Rbc1 {[%clk 0:00:01]}  Nd6 {[%clk 0:00:01]} 48. Rxc7 {[%clk 0:00:02]}  Rxc7 {[%clk 0:00:02]} 49. Rxc7+ {[%clk 0:00:01]}  Kf6 {[%clk 0:00:03]} 50. Rc8 {[%clk 0:00:02]}  Rxb7 {[%clk 0:00:01]} 51. Bxb7 {[%clk 0:00:01]}  Nxb7 {[%clk 0:00:02]} 52. Ra8 {[%clk 0:00:01]}  Nc5 {[%clk 0:00:02]} 53. Ra5 {[%clk 0:00:01]}  Nd3 {[%clk 0:00:02]} 54. Rxa4 {[%clk 0:00:02]}  Ne1+ {[%clk 0:00:02]} 55. Kf2 {[%clk 0:00:01]}  Nd3+ {[%clk 0:00:03]} 56. Ke3 {[%clk 0:00:01]}  Nb2 {[%clk 0:00:03]} 0-1


[Site "https://www.chess.com"]

[Event "Titled Tuesday Blitz March 22 Late 2022"]
[White "Ezat, Mohamed"]
[Black "Rabineau, Clement"]
[WhiteFideId "10600906"]
[BlackFideId "628891"]
[WhiteElo "2386"]
[BlackElo "2237"]
[Result "1-0"]
[Round "06"]
[TimeControl "180+1"]
[Date "2022.03.22"]
[WhiteClock "0:00:16"]
[BlackClock "0:00:04"]

1. d4 {[%clk 0:02:52]}  d6 {[%clk 0:03:00]} 2. c4 {[%clk 0:02:52]}  e5 {[%clk 0:02:59]} 3. Nf3 {[%clk 0:02:50]}  exd4 {[%clk 0:03:00]} 4. Nxd4 {[%clk 0:02:49]}  g6 {[%clk 0:03:00]} 5. Nc3 {[%clk 0:02:50]}  Bg7 {[%clk 0:03:00]} 6. g3 {[%clk 0:02:33]}  Nc6 {[%clk 0:02:59]} 7. Nxc6 {[%clk 0:02:32]}  bxc6 {[%clk 0:03:00]} 8. Bg2 {[%clk 0:02:32]}  Ne7 {[%clk 0:03:01]} 9. O-O {[%clk 0:02:32]}  O-O {[%clk 0:03:01]} 10. Bg5 {[%clk 0:02:31]}  Rb8 {[%clk 0:02:59]} 11. Qd2 {[%clk 0:02:30]}  Bd7 {[%clk 0:01:41]} 12. a3 {[%clk 0:02:23]}  a5 {[%clk 0:01:35]} 13. Rab1 {[%clk 0:02:20]}  f6 {[%clk 0:01:21]} 14. Bf4 {[%clk 0:02:19]}  g5 {[%clk 0:01:13]} 15. Be3 {[%clk 0:02:18]}  Nf5 {[%clk 0:01:13]} 16. b4 {[%clk 0:02:14]}  axb4 {[%clk 0:01:13]} 17. axb4 {[%clk 0:02:13]}  Re8 {[%clk 0:01:04]} 18. Ba7 {[%clk 0:02:10]}  Ra8 {[%clk 0:00:53]} 19. Bd4 {[%clk 0:02:08]}  Nxd4 {[%clk 0:00:52]} 20. Qxd4 {[%clk 0:02:09]}  f5 {[%clk 0:00:50]} 21. Qd2 {[%clk 0:02:09]}  Ra3 {[%clk 0:00:43]} 22. Rfc1 {[%clk 0:02:09]}  Qf6 {[%clk 0:00:38]} 23. Nd1 {[%clk 0:02:04]}  h6 {[%clk 0:00:35]} 24. b5 {[%clk 0:02:01]}  Qe5 {[%clk 0:00:10]} 25. bxc6 {[%clk 0:01:58]}  Bc8 {[%clk 0:00:10]} 26. e3 {[%clk 0:01:53]}  Ba6 {[%clk 0:00:07]} 27. Qd5+ {[%clk 0:01:31]}  Kh7 {[%clk 0:00:07]} 28. Qxe5 {[%clk 0:01:30]}  Bxe5 {[%clk 0:00:08]} 29. c5 {[%clk 0:01:28]}  dxc5 {[%clk 0:00:07]} 30. Rxc5 {[%clk 0:01:28]}  Kg6 {[%clk 0:00:06]} 31. h3 {[%clk 0:01:11]}  f4 {[%clk 0:00:06]} 32. gxf4 {[%clk 0:01:05]}  gxf4 {[%clk 0:00:07]} 33. Be4+ {[%clk 0:01:05]}  Kf6 {[%clk 0:00:07]} 34. exf4 {[%clk 0:01:03]}  Bd4 {[%clk 0:00:07]} 35. Rf5+ {[%clk 0:01:02]}  Kg7 {[%clk 0:00:03]} 36. Bg2 {[%clk 0:00:55]}  Ra2 {[%clk 0:00:02]} 37. Kh2 {[%clk 0:00:38]}  Re1 {[%clk 0:00:02]} 38. Rd5 {[%clk 0:00:32]}  Bd3 {[%clk 0:00:03]} 39. Rb7 {[%clk 0:00:22]}  Ra4 {[%clk 0:00:03]} 40. Nc3 {[%clk 0:00:18]}  Kf6 {[%clk 0:00:04]} 41. Nxa4 {[%clk 0:00:18]}  Bxf2 {[%clk 0:00:04]} 42. Rxd3 {[%clk 0:00:16]}  h5 {[%clk 0:00:04]} 43. h4 {[%clk 0:00:16]}  Bxh4 {[%clk 0:00:04]} 44. Nc5 {[%clk 0:00:16]}  Bf2 {[%clk 0:00:04]} 45. Ne4+ {[%clk 0:00:16]} 1-0


[Site "https://www.chess.com"]

[Event "Titled Tuesday Blitz March 22 Late 2022"]
[White "Ferreira, Vitor Hugo Vieira"]
[Black "Szpar, Milosz"]
[WhiteFideId "2119765"]
[BlackFideId "1184989"]
[WhiteElo "2165"]
[BlackElo "2447"]
[Result "1-0"]
[Round "06"]
[TimeControl "180+1"]
[Date "2022.03.22"]
[WhiteClock "0:00:41"]
[BlackClock "0:01:39"]

1. e4 {[%clk 0:03:00]}  e6 {[%clk 0:02:57]} 2. d4 {[%clk 0:03:00]}  d5 {[%clk 0:02:57]} 3. Nc3 {[%clk 0:02:59]}  Nf6 {[%clk 0:02:53]} 4. Bg5 {[%clk 0:02:56]}  dxe4 {[%clk 0:02:50]} 5. Nxe4 {[%clk 0:02:54]}  Be7 {[%clk 0:02:50]} 6. Bxf6 {[%clk 0:02:52]}  gxf6 {[%clk 0:02:51]} 7. Qd2 {[%clk 0:02:49]}  f5 {[%clk 0:02:49]} 8. Nc3 {[%clk 0:02:49]}  a6 {[%clk 0:02:47]} 9. O-O-O {[%clk 0:02:48]}  b5 {[%clk 0:02:47]} 10. Kb1 {[%clk 0:02:47]}  Bb7 {[%clk 0:02:47]} 11. f3 {[%clk 0:02:39]}  Nd7 {[%clk 0:02:47]} 12. d5 {[%clk 0:02:36]}  Nc5 {[%clk 0:02:45]} 13. dxe6 {[%clk 0:02:34]}  Qxd2 {[%clk 0:02:30]} 14. exf7+ {[%clk 0:02:33]}  Kxf7 {[%clk 0:02:31]} 15. Rxd2 {[%clk 0:02:34]}  Rad8 {[%clk 0:02:28]} 16. Rxd8 {[%clk 0:02:24]}  Rxd8 {[%clk 0:02:28]} 17. a3 {[%clk 0:02:23]}  Bf6 {[%clk 0:02:25]} 18. Be2 {[%clk 0:01:52]}  Bxc3 {[%clk 0:02:19]} 19. bxc3 {[%clk 0:01:52]}  Na4 {[%clk 0:02:20]} 20. c4 {[%clk 0:01:49]}  Rd2 {[%clk 0:02:18]} 21. Kc1 {[%clk 0:01:44]}  Rd4 {[%clk 0:02:10]} 22. cxb5 {[%clk 0:01:40]}  Nc3 {[%clk 0:02:07]} 23. bxa6 {[%clk 0:01:37]}  Bd5 {[%clk 0:02:06]} 24. Bd3 {[%clk 0:01:21]}  Kf6 {[%clk 0:02:01]} 25. Kd2 {[%clk 0:01:19]}  Nb1+ {[%clk 0:01:58]} 26. Ke3 {[%clk 0:01:17]}  Ra4 {[%clk 0:01:52]} 27. c4 {[%clk 0:01:06]}  Bxc4 {[%clk 0:01:50]} 28. Bxb1 {[%clk 0:01:05]}  Rxa3+ {[%clk 0:01:49]} 29. Kf4 {[%clk 0:01:00]}  Bf1 {[%clk 0:01:47]} 30. h4 {[%clk 0:00:50]}  Ra4+ {[%clk 0:01:44]} 31. Kg3 {[%clk 0:00:47]}  f4+ {[%clk 0:01:43]} 32. Kf2 {[%clk 0:00:47]}  Bxa6 {[%clk 0:01:43]} 33. Ne2 {[%clk 0:00:46]}  Rb4 {[%clk 0:01:43]} 34. Rd1 {[%clk 0:00:40]}  Rb2 {[%clk 0:01:43]} 35. Bd3 {[%clk 0:00:40]}  Bxd3 {[%clk 0:01:39]} 36. Rxd3 {[%clk 0:00:41]}  Kf5 {[%clk 0:01:39]} 37. Rd4 {[%clk 0:00:41]}  Ke5 {[%clk 0:01:39]} 38. Re4+ {[%clk 0:00:41]}  Kf5 {[%clk 0:01:39]} 39. Rxf4+ {[%clk 0:00:41]} 1-0


[Site "https://www.chess.com"]

[Event "Titled Tuesday Blitz March 22 Late 2022"]
[White "Fiol, Fabrice"]
[Black "Zhou, Qiyu"]
[WhiteFideId "611670"]
[BlackFideId "505161"]
[WhiteElo "2438"]
[BlackElo "1925"]
[Result "1/2-1/2"]
[Round "06"]
[TimeControl "180+1"]
[Date "2022.03.22"]
[WhiteClock "0:00:11"]
[BlackClock "0:00:04"]

1. e4 {[%clk 0:02:50]}  e5 {[%clk 0:02:58]} 2. Nf3 {[%clk 0:02:50]}  Nc6 {[%clk 0:02:58]} 3. Bc4 {[%clk 0:02:50]}  Bc5 {[%clk 0:02:54]} 4. d3 {[%clk 0:02:50]}  Nf6 {[%clk 0:02:54]} 5. h3 {[%clk 0:02:49]}  O-O {[%clk 0:02:50]} 6. c3 {[%clk 0:02:48]}  a5 {[%clk 0:02:50]} 7. O-O {[%clk 0:02:45]}  Ba7 {[%clk 0:02:47]} 8. Bb3 {[%clk 0:02:42]}  h6 {[%clk 0:02:43]} 9. Re1 {[%clk 0:02:42]}  d6 {[%clk 0:02:42]} 10. Nbd2 {[%clk 0:02:42]}  Be6 {[%clk 0:02:37]} 11. Nf1 {[%clk 0:02:36]}  Ne7 {[%clk 0:02:28]} 12. Ng3 {[%clk 0:02:29]}  Kh7 {[%clk 0:02:24]} 13. d4 {[%clk 0:02:22]}  exd4 {[%clk 0:02:21]} 14. Nxd4 {[%clk 0:02:20]}  Bxb3 {[%clk 0:02:20]} 15. Qxb3 {[%clk 0:02:19]}  Qc8 {[%clk 0:02:17]} 16. Ndf5 {[%clk 0:02:08]}  Nxf5 {[%clk 0:02:13]} 17. Nxf5 {[%clk 0:02:07]}  Nxe4 {[%clk 0:02:02]} 18. Ne7 {[%clk 0:01:53]}  Bxf2+ {[%clk 0:01:30]} 19. Kf1 {[%clk 0:01:32]}  Qe6 {[%clk 0:01:21]} 20. Qxe6 {[%clk 0:01:07]}  fxe6 {[%clk 0:01:21]} 21. Rxe4 {[%clk 0:01:06]}  Bh4+ {[%clk 0:01:20]} 22. Ke2 {[%clk 0:01:05]}  Bxe7 {[%clk 0:01:21]} 23. Rxe6 {[%clk 0:01:04]}  Bh4 {[%clk 0:01:18]} 24. Be3 {[%clk 0:01:02]}  Rae8 {[%clk 0:01:15]} 25. Rxe8 {[%clk 0:01:01]}  Rxe8 {[%clk 0:01:15]} 26. Kd3 {[%clk 0:01:02]}  c6 {[%clk 0:00:53]} 27. a4 {[%clk 0:00:57]}  Rf8 {[%clk 0:00:39]} 28. Bb6 {[%clk 0:00:44]}  Rf5 {[%clk 0:00:39]} 29. b4 {[%clk 0:00:36]}  axb4 {[%clk 0:00:39]} 30. cxb4 {[%clk 0:00:36]}  Bf6 {[%clk 0:00:36]} 31. Re1 {[%clk 0:00:32]}  Rd5+ {[%clk 0:00:33]} 32. Kc4 {[%clk 0:00:29]}  Rd2 {[%clk 0:00:32]} 33. g4 {[%clk 0:00:28]}  Rc2+ {[%clk 0:00:30]} 34. Kd3 {[%clk 0:00:22]}  Rc3+ {[%clk 0:00:29]} 35. Ke4 {[%clk 0:00:22]}  Rxh3 {[%clk 0:00:28]} 36. Kf5 {[%clk 0:00:21]}  Rf3+ {[%clk 0:00:18]} 37. Ke6 {[%clk 0:00:21]}  d5 {[%clk 0:00:09]} 38. Kd7 {[%clk 0:00:21]}  Rf4 {[%clk 0:00:08]} 39. Bc5 {[%clk 0:00:20]}  Rxg4 {[%clk 0:00:06]} 40. Kc8 {[%clk 0:00:20]}  Bd4 {[%clk 0:00:04]} 41. Bd6 {[%clk 0:00:19]}  Bc3 {[%clk 0:00:03]} 42. Rb1 {[%clk 0:00:19]}  d4 {[%clk 0:00:02]} 43. Kxb7 {[%clk 0:00:19]}  d3 {[%clk 0:00:03]} 44. a5 {[%clk 0:00:19]}  d2 {[%clk 0:00:04]} 45. a6 {[%clk 0:00:19]}  Bxb4 {[%clk 0:00:03]} 46. a7 {[%clk 0:00:19]}  Bxd6 {[%clk 0:00:03]} 47. a8=Q {[%clk 0:00:19]}  Rb4+ {[%clk 0:00:03]} 48. Rxb4 {[%clk 0:00:18]}  d1=Q {[%clk 0:00:03]} 49. Ra4 {[%clk 0:00:11]}  Qd5 {[%clk 0:00:04]} 50. Kc8 {[%clk 0:00:11]}  Qe6+ {[%clk 0:00:04]} 51. Kb7 {[%clk 0:00:10]}  Qd5 {[%clk 0:00:04]} 52. Kc8 {[%clk 0:00:10]}  Qe6+ {[%clk 0:00:04]} 53. Kb7 {[%clk 0:00:11]}  Qd5 {[%clk 0:00:04]} 1/2-1/2


[Site "https://www.chess.com"]

[Event "Titled Tuesday Blitz March 22 Late 2022"]
[White "Fishbein, Alexander"]
[Black "Almagro Mazariegos, Sebastian"]
[WhiteFideId "2000377"]
[BlackFideId "2221640"]
[WhiteElo "2442"]
[BlackElo "2273"]
[Result "1-0"]
[Round "06"]
[TimeControl "180+1"]
[Date "2022.03.22"]
[WhiteClock "0:00:28"]
[BlackClock "0:00:13"]

1. Nf3 {[%clk 0:02:59]}  Nf6 {[%clk 0:02:59]} 2. c4 {[%clk 0:02:57]}  g6 {[%clk 0:02:58]} 3. Nc3 {[%clk 0:02:56]}  Bg7 {[%clk 0:02:59]} 4. e4 {[%clk 0:02:56]}  O-O {[%clk 0:02:59]} 5. d4 {[%clk 0:02:56]}  d6 {[%clk 0:03:00]} 6. Be2 {[%clk 0:02:56]}  c5 {[%clk 0:02:59]} 7. d5 {[%clk 0:02:53]}  e6 {[%clk 0:02:59]} 8. O-O {[%clk 0:02:53]}  Re8 {[%clk 0:03:00]} 9. h3 {[%clk 0:02:43]}  exd5 {[%clk 0:02:58]} 10. exd5 {[%clk 0:02:43]}  Bf5 {[%clk 0:02:58]} 11. Bd3 {[%clk 0:02:41]}  Bxd3 {[%clk 0:02:56]} 12. Qxd3 {[%clk 0:02:40]}  Nbd7 {[%clk 0:02:54]} 13. Bf4 {[%clk 0:02:39]}  Qb6 {[%clk 0:02:51]} 14. Nb5 {[%clk 0:02:26]}  Bf8 {[%clk 0:02:25]} 15. Qb3 {[%clk 0:02:14]}  Ne4 {[%clk 0:02:16]} 16. Rfe1 {[%clk 0:02:07]}  a6 {[%clk 0:02:15]} 17. Nc3 {[%clk 0:02:04]}  Nxc3 {[%clk 0:02:10]} 18. Qxc3 {[%clk 0:01:56]}  Bg7 {[%clk 0:02:02]} 19. Qc2 {[%clk 0:01:56]}  Qxb2 {[%clk 0:01:07]} 20. Qxb2 {[%clk 0:01:54]}  Bxb2 {[%clk 0:01:06]} 21. Rab1 {[%clk 0:01:39]}  Rxe1+ {[%clk 0:01:02]} 22. Nxe1 {[%clk 0:01:36]}  Be5 {[%clk 0:01:02]} 23. Rxb7 {[%clk 0:01:29]}  Bxf4 {[%clk 0:00:50]} 24. Rxd7 {[%clk 0:01:29]}  Rb8 {[%clk 0:00:50]} 25. g3 {[%clk 0:01:06]}  Rb1 {[%clk 0:00:49]} 26. gxf4 {[%clk 0:01:02]}  Rxe1+ {[%clk 0:00:48]} 27. Kg2 {[%clk 0:01:02]}  Rc1 {[%clk 0:00:48]} 28. Rxd6 {[%clk 0:01:00]}  Rxc4 {[%clk 0:00:47]} 29. Rxa6 {[%clk 0:01:00]}  Rd4 {[%clk 0:00:44]} 30. d6 {[%clk 0:00:58]}  c4 {[%clk 0:00:44]} 31. Rc6 {[%clk 0:00:55]}  c3 {[%clk 0:00:40]} 32. Rxc3 {[%clk 0:00:53]}  Rxd6 {[%clk 0:00:38]} 33. a4 {[%clk 0:00:51]}  Rd4 {[%clk 0:00:31]} 34. Ra3 {[%clk 0:00:51]}  Rxf4 {[%clk 0:00:32]} 35. a5 {[%clk 0:00:51]}  Rc4 {[%clk 0:00:31]} 36. a6 {[%clk 0:00:51]}  Rc8 {[%clk 0:00:31]} 37. Kf3 {[%clk 0:00:45]}  Kf8 {[%clk 0:00:30]} 38. Ke4 {[%clk 0:00:45]}  Ke7 {[%clk 0:00:30]} 39. a7 {[%clk 0:00:45]}  Ra8 {[%clk 0:00:29]} 40. Ra6 {[%clk 0:00:40]}  h6 {[%clk 0:00:20]} 41. f4 {[%clk 0:00:36]}  Kd7 {[%clk 0:00:19]} 42. Ke5 {[%clk 0:00:35]}  Ke7 {[%clk 0:00:17]} 43. h4 {[%clk 0:00:33]}  g5 {[%clk 0:00:15]} 44. fxg5 {[%clk 0:00:30]}  hxg5 {[%clk 0:00:15]} 45. hxg5 {[%clk 0:00:30]}  Kf8 {[%clk 0:00:13]} 46. Kd6 {[%clk 0:00:29]}  Kg7 {[%clk 0:00:13]} 47. Kc7 {[%clk 0:00:28]} 1-0


[Site "https://www.chess.com"]